lending/lending_fUSD_20260211
["ID","MTS","AMOUNT","RATE_DAILY","PERIOD"]
[405088375,1770774641624,-2343.97,0.00015606,2]
[405088376,1770774641633,-2351.0,0.00015611,2]
[405088377,1770774641643,-4406.24,0.00015669,2]
[405088378,1770774641651,-16968.0835905,0.00015679,2]
[405088379,1770774641660,-1007.22398632,0.00015921,2]
[405088380,1770774641670,-1000.0,0.00015921,2]
[405088381,1770774641679,-1000.0,0.00015921,2]
[405088382,1770774641688,-330.20104846,0.00015952,2]
[405088383,1770774641697,-1000.0,0.00016065,2]
[405088384,1770774641706,-7440.33,0.00016116,2]
[405088385,1770774641715,-1238.29805945,0.000162,2]
[405088386,1770774641724,-16968.0835905,0.00016234,2]
[405088387,1770774641734,-4406.24,0.00016253,2]
[405088388,1770774641743,-301.87866704,0.00016262,2]
[405088389,1770774641752,-518.70244682,0.00016262,2]
[405088390,1770774641762,-520.25784948,0.00016262,2]
[405088391,1770774641772,-500.0,0.00016262,2]
[405088392,1770774641781,-305235.88562682,0.00016263,2]
[405088393,1770774641790,-368.79128323,0.00016438,2]
[405088394,1770774641799,-1014.54604241,0.00016468,2]
[405088395,1770774641809,-1500.0,0.00016468,2]
[405088396,1770774641819,-736.0,0.000166,2]
[405088397,1770774641828,-16968.0835905,0.0001679,2]
[405088398,1770774641837,-1203.16,0.00016922,2]
[405088399,1770774641847,-1509.74540724,0.00017016,2]
[405088400,1770774641855,-250.0,0.00017048,2]
[405088401,1770774641864,-219.0,0.00017173,2]
[405088402,1770774641875,-7166.17,0.00017201,2]
[405088403,1770774641884,-16968.0835905,0.00017345,2]
[405088404,1770774641894,-300.0,0.00017351,7]
[405088405,1770774641904,-1919.7844923,0.00017677,2]
[405088406,1770774641913,-305.94219279,0.00017755,2]
[405088407,1770774641922,-436.90548125,0.00017755,2]
[405088408,1770774641931,-922.44624396,0.00017755,2]
[405088409,1770774641940,-361.24975585,0.00017755,2]
[405088410,1770774641950,-2000.0,0.000178,2]
[405088411,1770774641959,-2000.0,0.0001781,2]
[405088412,1770774641968,-436.90548124,0.00017828,2]
[405088413,1770774641977,-482.42380393,0.00017833,2]
[405088414,1770774641987,-482.42380394,0.00017835,2]
[405088415,1770774641996,-1000.0,0.0001785,2]
[405088416,1770774642006,-500.0,0.00017854,2]
[405088417,1770774642015,-500.0,0.00017854,2]
[405088418,1770774642025,-563279.2785784,0.00017855,2]
[405088419,1770774642034,-199251.3698801,0.00017855,2]
[405088420,1770774642044,-2674.2412224,0.00017855,2]
[405088421,1770774642053,-3467.3902029,0.00017855,2]
[405088422,1770774642064,-18086.815169,0.00017855,2]
[405088423,1770774642074,-232332.8055402,0.00017855,2]
[405088424,1770774642083,-48693.332782,0.00017855,2]
[405088425,1770774642092,-487.0,0.00017855,2]
[405088426,1770774642101,-487.0,0.00017855,2]
[405088427,1770774642110,-487.0,0.00017855,2]
[405088428,1770774642119,-487.0,0.00017855,2]
[405088429,1770774642129,-487.0,0.00017855,2]
[405088430,1770774642138,-487.0,0.00017855,2]
[405088431,1770774642147,-487.0,0.00017855,2]
[405088432,1770774642157,-487.0,0.00017855,2]
[405088433,1770774642167,-487.0,0.00017855,2]
[405088434,1770774642176,-487.0,0.00017855,2]
[405088435,1770774642185,-506.59,0.00017855,2]
[405088436,1770774642194,-10000.0,0.000179,2]
[405088437,1770774642203,-436.90548124,0.000179,2]
[405088438,1770774642212,-16968.0835905,0.000179,2]
[405088439,1770774642222,-720.70977229,0.000179,2]
[405088440,1770774642231,-500.0,0.00017905,2]
[405088441,1770774642242,-500.0,0.00017999,2]
[405088442,1770774642251,-500.0,0.00017999,2]
[405088443,1770774642260,-172.65144793,0.00017999,2]
[405088444,1770774642270,-770364.74794769,0.00018,2]
[405088445,1770774642280,-2093737.63962944,0.00018,2]
[405088447,1770774644165,152.697002,0.000345,31]
[405088448,1770774644900,-1011.42,0.00013152,2]
[405088449,1770774646511,-500.0,0.00013152,2]
[405088470,1770774740051,551.06,0.00010005,2]
[405088471,1770774740123,551.06,0.00010356,2]
[405088472,1770774740357,551.06,0.00010707,2]
[405088473,1770774740574,551.06,0.00011059,2]
[405088474,1770774740786,551.06,0.0001141,2]
[405088475,1770774740995,551.06,0.00011761,2]
[405088477,1770774741437,551.06,0.00012112,2]
[405088478,1770774741484,551.06,0.00012463,2]
[405088482,1770774980121,4006.57237999,0.00035616,30]
[405088486,1770775521975,5576.53,0.0001226,2]
[405088489,1770775561334,175.62,0.00011944,2]
[405088490,1770775570216,500.0,0.000345,30]
[405088491,1770775586923,500.0,0.000348,30]
[405088493,1770775612416,500.0,0.000349,30]
[405088527,1770775831551,-498.912,0.00012791,2]
[405088528,1770775831562,-250.0,0.00012795,2]
[405088529,1770775831571,-138.7797325,0.00012799,2]
[405088530,1770775831583,-1061.2202675,0.00012799,2]
[405088531,1770775831593,-280.59,0.000128,2]
[405088532,1770775831603,-500.0,0.000128,2]
[405088533,1770775831613,-500.0,0.000128,2]
[405088534,1770775831623,-500.0,0.000128,2]
[405088535,1770775831632,-254.23062935,0.00012801,2]
[405088536,1770775831642,-551.06,0.00012814,2]
[405088537,1770775831651,-790.6682091,0.00012952,2]
[405088538,1770775831661,-236.62263111,0.00012952,2]
[405088539,1770775831670,-11460.87130997,0.00012952,2]
[405088540,1770775831680,-500.0,0.00012964,2]
[405088541,1770775831690,-500.0,0.00012964,2]
[405088542,1770775831699,-500.0,0.00012964,2]
[405088543,1770775831709,-500.0,0.00012964,2]
[405088544,1770775831718,-500.0,0.00012964,2]
[405088545,1770775831729,-500.0,0.00012964,2]
[405088546,1770775831738,-388.70651584,0.00012964,2]
[405088547,1770775831747,-150.0,0.00012964,2]
[405088548,1770775831757,-244.7537542,0.00013052,2]
[405088549,1770775831766,-9999.99,0.00013065,2]
[405088550,1770775831777,-150.99,0.00013065,2]
[405088551,1770775831787,-4573.73,0.00013065,2]
[405088552,1770775831797,-9999.99,0.00013065,2]
[405088553,1770775831807,-9999.99,0.00013065,2]
[405088554,1770775831817,-551.06,0.00013165,2]
[405088555,1770775831827,-999.99,0.00013165,2]
[405088556,1770775831836,-551.06,0.00013516,2]
[405088557,1770775831847,-1000.0,0.000136,2]
[405088558,1770775831858,-500.0,0.00013698,2]
[405088559,1770775831867,-500.0,0.00013698,2]
[405088560,1770775831877,-500.0,0.00013698,2]
[405088561,1770775831887,-500.0,0.00013698,2]
[405088562,1770775831897,-551.06,0.00013867,2]
[405088563,1770775831907,-250.0,0.0001407,2]
[405088564,1770775831917,-257.15622973,0.0001407,2]
[405088565,1770775831927,-419.90831638,0.0001407,2]
[405088566,1770775831936,-551.06,0.00014218,2]
[405088567,1770775831947,-551.06,0.00014569,2]
[405088568,1770775831956,-11460.87130988,0.00014576,2]
[405088569,1770775831965,-236.6226311,0.00014589,2]
[405088570,1770775831975,-2493.32,0.0001483,2]
[405088571,1770775831984,-209.13309471,0.00014833,2]
[405088572,1770775831993,-240725.3,0.00014843,2]
[405088573,1770775832002,-551.06,0.0001492,2]
[405088574,1770775832012,-500.0,0.00014959,2]
[405088575,1770775832022,-250.0,0.00015,2]
[405088576,1770775832032,-200.0,0.00015002,2]
[405088577,1770775832041,-11310.34,0.00015017,2]
[405088578,1770775832051,-200.0,0.00015068,2]
[405088579,1770775832060,-1353.0915,0.00015162,2]
[405088580,1770775832069,-175.4,0.00015217,2]
[405088581,1770775832079,-203.8,0.00015265,2]
[405088582,1770775832088,-551.06,0.00015271,2]
[405088583,1770775832098,-240.02,0.0001532,2]
[405088584,1770775832108,-500.0,0.00015373,2]
[405088585,1770775832117,-2493.32,0.00015571,2]
[405088586,1770775832128,-551.06,0.00015622,2]
[405088587,1770775832138,-1000.0,0.00015921,2]
[405088588,1770775832149,-551.06,0.00015974,2]
[405088589,1770775832158,-11460.87130988,0.00016201,2]
[405088590,1770775832168,-236.6226311,0.00016225,2]
[405088591,1770775832177,-2493.32,0.00016313,2]
[405088592,1770775832187,-551.06,0.00016325,2]
[405088593,1770775832196,-1500.0,0.00016468,2]
[405088594,1770775832206,-551.06,0.00016676,2]
[405088595,1770775832215,-250.0,0.00016901,2]
[405088596,1770775832225,-300.0,0.00017,2]
[405088597,1770775832234,-1927.28043664,0.00017016,2]
[405088598,1770775832244,-2493.32,0.00017054,2]
[405088599,1770775832254,-203.8,0.00017173,2]
[405088600,1770775832263,-5679.08,0.00017622,2]
[405088601,1770775832273,-1925.55570641,0.00017677,2]
[405088602,1770775832283,-275.0809771,0.00017723,5]
[405088603,1770775832292,-175.4,0.00017753,2]
[405088604,1770775832302,-215.0,0.00017764,2]
[405088605,1770775832311,-2493.32,0.00017796,2]
[405088606,1770775832321,-2500.0,0.00017853,2]
[405088607,1770775832331,-6733.1643,0.00017853,2]
[405088608,1770775832340,-801.52947723,0.00017873,2]
[405088609,1770775832350,-204.85392627,0.000179,2]
[405088610,1770775832360,-688.56648099,0.000179,2]
[405088611,1770775832370,-2171.83682936,0.000179,2]
[405088612,1770775832379,-202.43935991,0.000179,3]
[405088613,1770775832389,-500.0,0.000179,2]
[405088614,1770775832399,-500.0,0.000179,2]
[405088615,1770775832408,-500.0,0.000179,2]
[405088616,1770775832418,-500.0,0.000179,2]
[405088617,1770775832427,-500.0,0.000179,2]
[405088618,1770775832437,-500.0,0.000179,2]
[405088619,1770775832446,-500.0,0.000179,2]
[405088620,1770775832456,-500.0,0.000179,2]
[405088621,1770775832465,-500.0,0.000179,2]
[405088622,1770775832475,-500.0,0.000179,2]
[405088623,1770775832484,-500.0,0.00017952,2]
[405088624,1770775832494,-163488.832246,0.00017953,2]
[405088625,1770775832503,-512023.99807821,0.00017953,2]
[405088626,1770775832515,-1254.41808677,0.00017953,2]
[405088632,1770775837588,-1960.369699,0.00017825,2]
[405088633,1770775837600,-5110.81304721,0.00017825,2]
[405088634,1770775837848,-4389.68856367,0.00017825,2]
[405088635,1770775837864,-34281.47304562,0.00017953,2]
[405088636,1770775837873,-30578.86484853,0.00017953,2]
[405088640,1770775839792,-346.1333056,0.00017953,2]
[405088653,1770776147577,503.58400092,0.0003461,30]
[405088655,1770776186594,151.0,0.000345,31]
[405088656,1770776256545,254.849048,0.0003561,31]
[405088657,1770776258012,254.849048,0.0003561,31]
[405088658,1770776259529,254.849048,0.0003561,31]
[405088659,1770776260948,254.849048,0.0003561,31]
[405088661,1770776484012,203.99,0.000127,2]
[405088662,1770776492251,399.13,0.00012497,2]
[405088663,1770776538310,153.829792,0.000329,31]
[405088664,1770776555738,203.879238,0.000329,31]
[405088665,1770776557467,203.879238,0.000329,31]
[405088666,1770776558619,203.879238,0.000329,31]
[405088667,1770776560094,203.879238,0.000329,31]
[405088668,1770776602253,500.0,0.00035616,120]
[405088669,1770776604555,500.0,0.000329,120]
[405088670,1770776611175,200.0,0.00012396,2]
[405088671,1770776611707,200.0,0.00012397,2]
[405088675,1770776751860,176.8458917,0.0003561,120]
[405088692,1770776898936,1777.19863,0.000355,67]
[405088693,1770776898996,1777.19862,0.0003547,67]
[405088694,1770776899041,1777.19863,0.0003547,67]
[405088695,1770776899084,1777.19862,0.0003547,67]
[405088696,1770776899151,1777.19863,0.0003547,67]
[405088697,1770776900405,1777.19862,0.0003547,67]
[405088698,1770776912317,500.0,0.00032877,120]
[405088699,1770776912812,500.0,0.00035616,120]
[405088700,1770776914343,980406.2,0.00012652,2]
[405088701,1770776925949,329.17288775,0.00018978,90]
[405088813,1770777031600,-300.0,0.00012651,2]
[405088814,1770777031609,-352.0,0.00012651,2]
[405088815,1770777031656,-848.0,0.00012651,2]
[405088816,1770777031669,-300.0,0.00012651,2]
[405088817,1770777031679,-300.0,0.00012651,2]
[405088818,1770777031689,-150.0,0.00012651,2]
[405088819,1770777031699,-457.43133128,0.00012652,2]
[405088820,1770777031711,-1000.0,0.00012652,2]
[405088828,1770777037514,-65026.24896872,0.00012652,2]
[405088830,1770777037525,-1031.0,0.00012743,2]
[405088832,1770777037535,-250.0,0.00012744,2]
[405088833,1770777037546,-151.0,0.00012744,2]
[405088834,1770777037556,-151.0,0.00012744,2]
[405088835,1770777037566,-151.0,0.00012744,2]
[405088836,1770777037576,-151.0,0.00012744,2]
[405088837,1770777037586,-151.0,0.00012744,2]
[405088838,1770777037595,-151.0,0.00012744,2]
[405088839,1770777037604,-151.0,0.00012744,2]
[405088840,1770777037614,-151.0,0.00012744,2]
[405088841,1770777037624,-151.0,0.00012744,2]
[405088842,1770777037633,-151.0,0.00012744,2]
[405088843,1770777037643,-151.0,0.00012744,2]
[405088844,1770777037654,-151.0,0.00012744,2]
[405088845,1770777037664,-151.0,0.00012744,2]
[405088846,1770777037675,-151.0,0.00012744,2]
[405088847,1770777037684,-151.0,0.00012744,2]
[405088848,1770777037693,-151.0,0.00012744,2]
[405088849,1770777037703,-151.0,0.00012744,2]
[405088850,1770777037712,-151.0,0.00012744,2]
[405088851,1770777037722,-151.0,0.00012744,2]
[405088852,1770777037732,-158.66160544,0.00012744,2]
[405088853,1770777037743,-331.86669654,0.00012748,2]
[405088854,1770777037752,-11678.77480827,0.00012751,2]
[405088855,1770777037763,-2853.43343688,0.00013,2]
[405088856,1770777037775,-5359.4094383,0.0001305,2]
[405088857,1770777037784,-11678.77480827,0.00013323,2]
[405088870,1770777038003,-1000.0,0.00013497,2]
[405088872,1770777038019,-1000.0,0.000135,2]
[405088874,1770777038029,-150.0,0.00013618,2]
[405088876,1770777038039,-376.5229462,0.00013697,2]
[405088878,1770777038048,-500.0,0.00013698,2]
[405088880,1770777038058,-605.48361918,0.00013698,2]
[405088882,1770777038067,-500.0,0.00013698,2]
[405088884,1770777038077,-257.16333416,0.00013698,2]
[405088886,1770777038087,-500.0,0.00013698,2]
[405088888,1770777038102,-500.0,0.00013698,3]
[405088890,1770777038111,-500.0,0.00013698,4]
[405088892,1770777038121,-500.0,0.00013698,5]
[405088894,1770777038134,-9092.51,0.00013698,2]
[405088896,1770777038143,-9999.99,0.00013698,2]
[405088898,1770777038153,-9999.99,0.00013698,2]
[405088900,1770777038163,-83385.07,0.00013698,2]
[405088902,1770777038175,-150.99,0.00013698,2]
[405088904,1770777038185,-255.0,0.00013752,2]
[405088906,1770777038195,-420.0,0.00013879,2]
[405088909,1770777038207,-420.0,0.00013879,2]
[405088911,1770777038218,-11678.77480827,0.00013895,2]
[405088912,1770777038227,-1680.0,0.00013916,2]
[405088914,1770777038237,-250.0,0.00014017,2]
[405088916,1770777038247,-11678.77480827,0.00014467,2]
[405088918,1770777038256,-1000.0,0.00014743,2]
[405088920,1770777038265,-500.0,0.00014842,6]
[405088922,1770777038274,-433.0,0.00014954,2]
[405088924,1770777038284,-2301.07834252,0.00015,2]
[405088926,1770777038293,-500.0,0.00015028,2]
[405088928,1770777038303,-11678.77480827,0.00015039,2]
[405088930,1770777038312,-1000.0,0.00015184,2]
[405088932,1770777038321,-587.0,0.00015226,2]
[405088934,1770777038330,-587.0,0.00015226,2]
[405088936,1770777038339,-1370.0,0.00015308,2]
[405088938,1770777038349,-474.04515499,0.00015373,2]
[405088940,1770777038358,-500.0,0.00015373,2]
[405088942,1770777038367,-500.0,0.00015373,2]
[405088944,1770777038376,-503.7757705,0.00015373,2]
[405088946,1770777038387,-1911.77,0.00015584,2]
[405088948,1770777038397,-11678.77480827,0.00015612,2]
[405088950,1770777038406,-500.0,0.00015687,2]
[405088952,1770777038416,-150.0,0.00015792,2]
[405088954,1770777038425,-150.0,0.00015847,2]
[405088956,1770777038434,-500.0,0.0001589,2]
[405088958,1770777038444,-207.47815207,0.00015902,2]
[405088960,1770777038454,-514.54604241,0.00015921,2]
[405088962,1770777038463,-1000.0,0.00015921,2]
[405088964,1770777038472,-262.74959238,0.00016,2]
[405088966,1770777038481,-5191.12,0.00016007,2]
[405088968,1770777038491,-151.0,0.00016066,2]
[405088970,1770777038501,-156.587,0.00016066,2]
[405088972,1770777038510,-162.380719,0.00016066,2]
[405088974,1770777038520,-158.69598519,0.00016066,2]
[405088976,1770777038530,-597.55533799,0.00016066,2]
[405088978,1770777038539,-11678.77480827,0.00016184,2]
[405088980,1770777038548,-5000.00619439,0.000162,5]
[405088982,1770777038557,-500.0,0.00016219,2]
[405088984,1770777038566,-736.0,0.00016244,2]
[405088986,1770777038575,-1509.74540724,0.00016468,2]
[405088988,1770777038585,-823.0,0.00016704,2]
[405088990,1770777038594,-166.17,0.00016712,2]
[405088992,1770777038603,-250.0,0.00016716,2]
[405088994,1770777038613,-11678.77480827,0.00016756,2]
[405088996,1770777038623,-1000.0,0.00016871,2]
[405088998,1770777038632,-5000.01,0.00016876,2]
[405088999,1770777038641,-613504.0101106,0.00017,2]
[405089001,1770777038651,-182.51520762,0.00017065,2]
[405089003,1770777038660,-8464.92985612,0.00017165,2]
[405089004,1770777038669,-8464.92985605,0.00017247,2]
[405089005,1770777038679,-150.0,0.00017265,2]
[405089006,1770777038687,-1356.38,0.00017297,2]
[405089007,1770777038697,-11678.77480827,0.00017328,2]
[405089008,1770777038707,-8464.92985605,0.00017328,2]
[405089009,1770777038716,-900.0,0.00017403,2]
[405089010,1770777038725,-8464.92985605,0.0001741,2]
[405089011,1770777038735,-182.51520761,0.00017428,2]
[405089012,1770777038744,-387.0,0.00017459,2]
[405089013,1770777038754,-430.80343219,0.00017469,2]
[405089014,1770777038764,-8464.92985605,0.00017492,2]
[405089015,1770777038773,-8464.92985605,0.00017573,2]
[405089016,1770777038783,-500.0,0.00017616,2]
[405089017,1770777038792,-8464.92985605,0.00017655,2]
[405089018,1770777038801,-190.34762968,0.00017677,2]
[405089019,1770777038811,-150.97808963,0.00017677,2]
[405089020,1770777038820,-157.64724202,0.00017677,2]
[405089021,1770777038830,-150.14703478,0.00017677,2]
[405089022,1770777038840,-387.0,0.00017686,2]
[405089023,1770777038850,-8464.92985605,0.00017737,2]
[405089024,1770777038860,-168.0,0.00017789,2]
[405089025,1770777038870,-809.49364266,0.0001779,2]
[405089026,1770777038880,-182.51520761,0.0001779,2]
[405089027,1770777038890,-361.24975585,0.0001779,2]
[405089028,1770777038900,-8464.92985605,0.00017818,2]
[405089029,1770777038910,-482.42380394,0.00017827,2]
[405089030,1770777038920,-185.06947077,0.00017855,2]
[405089031,1770777038930,-228.80890911,0.0001786,2]
[405089032,1770777038941,-228.00980637,0.00017889,2]
[405089033,1770777038951,-620.33388397,0.00017889,2]
[405089034,1770777038961,-620.33388397,0.00017889,2]
[405089035,1770777038971,-620.33388397,0.00017889,2]
[405089036,1770777038981,-620.33388397,0.00017889,2]
[405089037,1770777038991,-620.33388397,0.00017889,2]
[405089038,1770777039000,-620.33388397,0.00017889,2]
[405089039,1770777039010,-620.33388397,0.00017889,2]
[405089040,1770777039022,-620.33388397,0.00017889,2]
[405089041,1770777039037,-620.33388397,0.00017889,2]
[405089042,1770777039046,-620.33388397,0.00017889,2]
[405089043,1770777039056,-620.33388397,0.00017889,2]
[405089044,1770777039066,-620.33388397,0.00017889,2]
[405089045,1770777039076,-620.33388397,0.00017889,2]
[405089046,1770777039086,-620.33388397,0.00017889,2]
[405089047,1770777039096,-620.33388397,0.00017889,2]
[405089048,1770777039106,-620.33388397,0.00017889,2]
[405089049,1770777039115,-620.33388397,0.00017889,2]
[405089050,1770777039125,-620.33388397,0.00017889,2]
[405089051,1770777039137,-620.33388397,0.00017889,2]
[405089052,1770777039146,-620.33388397,0.00017889,2]
[405089053,1770777039156,-4013.4853603,0.0001789,2]
[405089054,1770777039165,-100788.23741386,0.0001789,2]
[405089056,1770777039776,-55169.03169113,0.0001789,2]
[405089057,1770777039788,-81919.35549286,0.0001789,2]
[405089058,1770777039799,-1372.81605632,0.0001789,2]
[405089059,1770777039810,-361.7188256,0.0001789,2]
[405089060,1770777040016,-297150.11716893,0.0001789,2]
[405089061,1770777040026,-3817.9601395,0.0001789,2]
[405089062,1770777040035,-412357.0766687,0.0001789,2]
[405089063,1770777040045,-19033.7957973,0.0001789,2]
[405089064,1770777040054,-487.0,0.0001789,2]
[405089065,1770777040064,-734.97,0.0001789,2]
[405089066,1770777040074,-610.57,0.0001789,2]
[405089067,1770777040083,-387.0,0.00017891,2]
[405089068,1770777040092,-195.80300336,0.000179,2]
[405089069,1770777040101,-10000.0,0.000179,2]
[405089070,1770777040110,-11678.77480827,0.000179,2]
[405089071,1770777040120,-264.84893935,0.000179,2]
[405089072,1770777040133,-1796.55900439,0.000179,2]
[405089073,1770777040142,-8464.92985605,0.000179,2]
[405089074,1770777040151,-225.29511625,0.000179,2]
[405089076,1770777040160,-225.48317433,0.00017935,2]
[405089078,1770777040170,-500.0,0.00017952,7]
[405089080,1770777040179,-500.0,0.00017952,8]
[405089082,1770777040189,-500.0,0.00017952,9]
[405089083,1770777040200,-83835.01535927,0.00017953,2]
[405089084,1770777040209,-500.0,0.00017999,10]
[405089085,1770777040219,-500.0,0.00017999,11]
[405089086,1770777040228,-500.0,0.00017999,12]
[405089087,1770777040237,-500.0,0.00017999,13]
[405089089,1770777040246,-500.0,0.00017999,14]
[405089091,1770777040255,-500.0,0.00017999,15]
[405089092,1770777040264,-500.0,0.00017999,16]
[405089093,1770777040274,-500.0,0.00017999,17]
[405089094,1770777040283,-500.0,0.00017999,18]
[405089095,1770777040292,-576.166013,0.00017999,19]
[405089096,1770777040302,-454.0,0.00018,2]
[405089097,1770777040311,-2409805.92298447,0.00018,2]
[405089098,1770777040320,-153.4566854,0.00018,2]
[405089099,1770777040329,-758359.47769466,0.00018,2]
[405089103,1770777043275,-6135.44242119,0.00018,2]
[405089104,1770777043288,-1427.13311078,0.00018,2]
[405089106,1770777043332,-8323.3767327,0.00018,2]
[405089118,1770777094539,151.0,0.00035254,31]
[405089120,1770777095968,151.0,0.00035254,31]
[405089136,1770777156957,163.10339,0.00035254,31]
[405089137,1770777158426,163.10339,0.00035254,31]
[405089138,1770777159842,163.10339,0.00035254,31]
[405089141,1770777161595,163.10339,0.00035254,31]
[405089160,1770777438542,233.92,0.00010123,2]
[405089161,1770777458044,151.0,0.0003561,31]
[405089162,1770777459522,151.0,0.0003561,31]
[405089163,1770777460914,151.0,0.0003561,31]
[405089166,1770777486204,267.0,0.00035616,30]
[405089168,1770777574299,180.46542312,0.000353,30]
[405089169,1770777609648,151.0,0.0003561,31]
[405089170,1770777618301,481.0,0.000352,120]
[405089171,1770777648183,152.85,0.000252,120]
[405089182,1770777694224,151.0,0.0003561,31]
[405089183,1770777760960,151.0,0.0003561,31]
[405089184,1770777762106,151.0,0.0003561,31]
[405089185,1770777763554,151.0,0.0003561,31]
[405089186,1770777769040,1000.0,0.0003561,120]
[405089187,1770777770183,1000.0,0.0003561,120]
[405089188,1770777770886,1000.0,0.0003561,120]
[405089189,1770777771465,1000.0,0.0003561,120]
[405089190,1770777771991,1000.0,0.0003561,120]
[405089191,1770777772430,1000.0,0.0003561,120]
[405089192,1770777772879,1000.0,0.0003561,120]
[405089193,1770777773359,1000.0,0.0003561,120]
[405089194,1770777773722,1000.0,0.0003561,120]
[405089195,1770777774218,1000.0,0.0003561,120]
[405089197,1770777824985,1000.0,0.0003561,120]
[405089198,1770777825504,1000.0,0.0003561,120]
[405089199,1770777825964,1000.0,0.0003561,120]
[405089200,1770777826329,1000.0,0.0003561,120]
[405089201,1770777826749,1000.0,0.0003561,120]
[405089202,1770777827097,1000.0,0.0003561,120]
[405089203,1770777827640,1000.0,0.0003561,120]
[405089204,1770777827822,1000.0,0.0003561,120]
[405089205,1770777828346,1000.0,0.0003561,120]
[405089206,1770777828926,1000.0,0.0003561,120]
[405089207,1770777831316,500.0,0.00035616,120]
[405089208,1770777863594,1000.0,0.0003561,120]
[405089209,1770777864159,1000.0,0.0003561,120]
[405089210,1770777864617,1000.0,0.0003561,120]
[405089211,1770777865593,1000.0,0.0003561,120]
[405089212,1770777865682,1000.0,0.0003561,120]
[405089213,1770777866834,1000.0,0.0003561,120]
[405089214,1770777867992,1000.0,0.0003561,120]
[405089215,1770777869013,1000.0,0.0003561,120]
[405089216,1770777869973,1000.0,0.0003561,120]
[405089217,1770777877701,506.14,0.0003561,120]
[405089395,1770778073720,1169.14,0.00035616,30]
[405089409,1770778231734,-175.95,0.00013329,2]
[405089410,1770778231744,-250.0,0.00013464,2]
[405089411,1770778231754,-1000.0,0.00013598,2]
[405089412,1770778231764,-250.0,0.00014593,2]
[405089413,1770778231773,-250.0,0.00014662,2]
[405089414,1770778231782,-166.66,0.00015702,2]
[405089415,1770778231791,-500.0,0.00016006,2]
[405089416,1770778231800,-166.66,0.00016032,2]
[405089418,1770778231810,-166.66,0.00016363,2]
[405089419,1770778231819,-1200.0,0.00016433,2]
[405089420,1770778231829,-7446.19,0.00016434,2]
[405089421,1770778231839,-368.79128323,0.00016438,2]
[405089422,1770778231848,-300.0,0.00016547,2]
[405089423,1770778231857,-500.0,0.00016548,2]
[405089424,1770778231867,-2672.08,0.00016647,2]
[405089425,1770778231876,-166.66,0.00016694,2]
[405089426,1770778231884,-2617.56,0.000167,2]
[405089428,1770778231894,-152.85,0.000168,2]
[405089429,1770778231903,-183.0,0.00016803,2]
[405089431,1770778231912,-130153.57860503,0.00016804,2]
[405089434,1770778231923,-547.34,0.00016804,2]
[405089502,1770778237949,-443.21634454,0.00016804,2]
[405089527,1770778240048,-18016.19285043,0.00016804,2]
[405089528,1770778240063,-1203.16,0.00016903,2]
[405089529,1770778240080,-500.0,0.00016904,2]
[405089530,1770778240092,-9999.99,0.00016904,2]
[405089531,1770778240104,-150.99,0.00016904,2]
[405089532,1770778240117,-500.0,0.00016999,2]
[405089533,1770778240130,-500.0,0.00016999,2]
[405089534,1770778240144,-166.66,0.00017024,2]
[405089535,1770778240155,-200.0,0.00017126,2]